fUST/lending_fUST_20250610
["ID","MTS","AMOUNT","RATE_DAILY","PERIOD"]
[365227555,1749549045447,-500.0,0.00022973,2]
[365227556,1749549045457,-500.0,0.00022973,2]
[365227557,1749549045467,-500.0,0.00022973,2]
[365227558,1749549045476,-500.0,0.00022973,2]
[365227559,1749549045486,-500.0,0.00022973,2]
[365227560,1749549045495,-522.38339356,0.00022973,2]
[365227561,1749549045505,-507.91466464,0.00022973,2]
[365227562,1749549045515,-500.0,0.00022973,2]
[365227563,1749549045525,-500.0,0.00022973,2]
[365227564,1749549045536,-500.0,0.00022973,2]
[365227565,1749549045544,-500.0,0.00022973,2]
[365227566,1749549045553,-500.0,0.00022973,2]
[365227567,1749549045561,-500.99943313,0.00022973,2]
[365227569,1749549045570,-501.1633097,0.00022973,2]
[365227571,1749549045579,-725.053516,0.00022973,2]
[365227573,1749549045589,-725.053516,0.00022973,2]
[365227574,1749549045598,-151.0,0.00022973,7]
[365227576,1749549045607,-151.0,0.00022973,7]
[365227578,1749549045616,-151.0,0.00022973,7]
[365227580,1749549045625,-250.896548,0.00022973,7]
[365227581,1749549045634,-217.306242,0.00022973,7]
[365227582,1749549045643,-217.306242,0.00022973,7]
[365227583,1749549045652,-151.0,0.0002299,7]
[365227584,1749549045661,-151.0,0.0002299,7]
[365227585,1749549045669,-151.0,0.0002299,7]
[365227586,1749549045678,-151.0,0.0002299,7]
[365227587,1749549045687,-151.587511,0.0002299,7]
[365227588,1749549045697,-151.0,0.0002299,7]
[365227589,1749549045707,-151.0,0.0002299,7]
[365227590,1749549045716,-151.0,0.0002299,7]
[365227591,1749549045725,-268.0,0.0002299,7]
[365227592,1749549045735,-151.0,0.0002299,7]
[365227593,1749549045744,-151.0,0.0002299,7]
[365227594,1749549045754,-326.327635,0.0002299,7]
[365227595,1749549045764,-326.327635,0.0002299,7]
[365227596,1749549045774,-151.0,0.0002299,7]
[365227597,1749549045783,-151.0,0.0002299,7]
[365227598,1749549045793,-151.0,0.0002299,7]
[365227600,1749549045899,-151.0,0.0002299,7]
[365227601,1749549045909,-151.0,0.0002299,7]
[365227602,1749549045918,-521.406122,0.0002299,7]
[365227603,1749549045929,-521.406122,0.0002299,7]
[365227604,1749549045939,-322.405961,0.0002299,7]
[365227605,1749549045948,-322.405961,0.0002299,7]
[365227606,1749549045958,-151.0,0.0002299,7]
[365227607,1749549045968,-200.0,0.00022999,2]
[365227608,1749549045978,-200.0,0.00022999,2]
[365227609,1749549045987,-200.0,0.00022999,2]
[365227610,1749549045998,-52621.93269111,0.00023,2]
[365227611,1749549046009,-968.06059058,0.00023,60]
[365227612,1749549046019,-157857.97730527,0.00023,20]
[365227614,1749549046120,-109488.50268844,0.00023,20]
[365227615,1749549046138,-460.0,0.00021917,4]
[365227616,1749549046147,-3175.44835794,0.00023,20]
[365227622,1749549046330,-455.51232709,0.0001969,2]
[365227624,1749549046341,-186.91763161,0.0001969,2]
[365227626,1749549046351,-500.0,0.0001969,2]
[365227628,1749549046360,-500.0,0.0001969,2]
[365227629,1749549046369,-171.17622373,0.0001969,2]
[365227630,1749549046379,-534.49923852,0.0001969,2]
[365227631,1749549046388,-500.0,0.0001969,2]
[365227632,1749549046398,-500.0,0.0001969,2]
[365227633,1749549046408,-500.0,0.0001969,2]
[365227634,1749549046418,-500.0,0.0001969,2]
[365227635,1749549046427,-500.0,0.0001969,2]
[365227636,1749549046436,-151.89457905,0.0001969,2]
[365227637,1749549046542,-348.10542095,0.0001969,2]
[365227638,1749549046551,-460.872832,0.0001969,2]
[365227639,1749549046562,-39.127168,0.0001969,2]
[365227640,1749549046572,-446.0975404,0.0001969,2]
[365227641,1749549046581,-500.0,0.0001969,2]
[365227642,1749549046590,-500.0,0.0001969,2]
[365227643,1749549046600,-500.0,0.0001969,2]
[365227644,1749549046609,-500.0,0.0001969,2]
[365227645,1749549046618,-447.23573288,0.0001969,2]
[365227646,1749549046627,-500.0,0.0001969,2]
[365227647,1749549046637,-500.0,0.0001969,2]
[365227648,1749549046646,-301.51026775,0.0001969,2]
[365227649,1749549046655,-1641.57,0.00021095,4]
[365227650,1749549046665,-460.0,0.00021095,4]
[365227651,1749549046674,-460.0,0.00021095,4]
[365227652,1749549046683,-1641.57,0.00021369,4]
[365227653,1749549046694,-1641.57,0.00021643,4]
[365227654,1749549046703,-1641.57,0.00021917,4]
[365227655,1749549046712,-460.0,0.00022191,4]
[365227656,1749549046722,-1641.57,0.00022191,4]
[365227657,1749549046731,-160.65084302,0.000222,69]
[365227658,1749549046741,-460.0,0.00022465,4]
[365227659,1749549046752,-1641.57,0.00022465,4]
[365227660,1749549046761,-460.0,0.00022739,4]
[365227661,1749549046771,-1641.57,0.00022739,4]
[365227662,1749549046780,-38447.70265045,0.00023,20]
[365227663,1749549046966,-460.0,0.00021095,4]
[365227664,1749549046976,-379.90100698,0.00021369,4]
[365227665,1749549046985,-163.207857,0.00022,7]
[365227666,1749549046995,-163.207857,0.00022739,7]
[365227667,1749549047004,-6903.01041929,0.00023,20]
[365227671,1749549107212,1205.397338,0.00024785,60]
[365227694,1749549245534,201.1011484,0.00017996,2]
[365227699,1749549385550,-953.93297485,0.0001969,2]
[365227700,1749549385576,-798.84,0.00019912,2]
[365227701,1749549386399,635.95531657,0.00019912,2]
[365227702,1749549387385,423.97021105,0.00019912,2]
[365227703,1749549388088,282.64680736,0.00019912,2]
[365227704,1749549388868,188.43120491,0.00019912,2]
[365227705,1749549389990,151.0,0.00019912,2]
[365227706,1749549390722,225.86240982,0.00019912,2]
[365227900,1749550246296,-788.68,0.00019916,2]
[365227901,1749550246306,-2261.12130572,0.00020053,2]
[365227915,1749551312499,6609.0674113,0.00017,2]
[365227916,1749551312522,12557.331,0.00017,2]
[365227917,1749551312544,12557.331,0.00017,2]
[365227918,1749551312565,12557.331,0.00017,2]
[365227919,1749551312588,12557.331,0.00017,2]
[365227920,1749551312611,12557.331,0.00017,2]
[365227921,1749551312632,12557.331,0.00017,2]
[365227922,1749551312654,2797.48784655,0.00017,2]
[365227927,1749551318676,301.999999,0.0002,120]
[365227929,1749551321334,153.88180263,0.000168,2]
[365227943,1749551438353,-2152.7829,0.00018,2]
[365227946,1749551440552,-359.01011788,0.00018,2]
[365227962,1749552632728,-6146.22573283,0.00018,2]
[365227963,1749552632739,-20861.91882481,0.00018,2]
[365227964,1749552632749,-10072.96872045,0.00018,2]
[365227965,1749552632758,-226.02464202,0.0002,2]
[365227966,1749552632768,-55.28397348,0.00020053,2]
[365227967,1749552632777,-180.509078,0.00020177,2]
[365227968,1749552632787,-1053.8867963,0.00020184,2]
[365227969,1749552632797,-1577.35,0.00020864,2]
[365227970,1749552632807,-2364.80453158,0.000209,2]
[365227971,1749552632816,-300.0,0.00021093,2]
[365227972,1749552632826,-182.15453462,0.00021094,2]
[365227973,1749552632836,-185.272,0.00021094,2]
[365227974,1749552632846,-460.0,0.00021095,4]
[365227975,1749552632855,-490.0,0.00021095,4]
[365227976,1749552632865,-460.0,0.00021095,4]
[365227977,1749552632874,-460.0,0.00021095,4]
[365227978,1749552632884,-460.0,0.00021095,4]
[365227979,1749552632893,-460.0,0.00021095,4]
[365227980,1749552632903,-511.44090945,0.00021095,4]
[365227981,1749552632913,-460.0,0.00021095,4]
[365227982,1749552632922,-452.80176838,0.00021095,4]
[365227983,1749552632931,-397.03109468,0.00021095,4]
[365227984,1749552632940,-460.0,0.00021095,4]
[365227985,1749552632950,-460.0,0.00021095,4]
[365227986,1749552632959,-380.0,0.00021095,4]
[365227987,1749552632969,-460.0,0.00021095,4]
[365227988,1749552632978,-391.03113077,0.00021095,4]
[365227989,1749552632988,-460.0,0.00021095,4]
[365227990,1749552632997,-460.0,0.00021095,4]
[365227991,1749552633006,-430.0,0.00021095,4]
[365227992,1749552633016,-460.0,0.00021095,4]
[365227993,1749552633025,-460.0,0.00021095,4]
[365227994,1749552633035,-460.0,0.00021095,4]
[365227995,1749552633044,-385.91708517,0.00021095,4]
[365227996,1749552633054,-300.7026197,0.00021095,4]
[365227997,1749552633064,-158.21779657,0.00021095,4]
[365227998,1749552633074,-460.0,0.00021095,4]
[365227999,1749552633084,-460.0,0.00021095,4]
[365228000,1749552633094,-390.0,0.00021095,4]
[365228001,1749552633104,-390.0,0.00021095,4]
[365228002,1749552633115,-346.68,0.00021095,4]
[365228003,1749552633125,-380.0,0.00021095,4]
[365228004,1749552633135,-460.0,0.00021095,4]
[365228005,1749552633145,-390.0,0.00021095,4]
[365228006,1749552633155,-380.0,0.00021095,4]
[365228007,1749552633166,-402.16245737,0.00021095,4]
[365228008,1749552633175,-390.0,0.00021095,4]
[365228009,1749552633187,-400.0,0.00021095,4]
[365228010,1749552633196,-390.0,0.00021095,4]
[365228011,1749552633206,-460.0,0.00021095,4]
[365228012,1749552633216,-460.0,0.00021095,4]
[365228013,1749552633226,-460.0,0.00021095,4]
[365228014,1749552633236,-405.72521844,0.00021095,4]
[365228015,1749552633245,-460.0,0.00021095,4]
[365228016,1749552633254,-460.0,0.00021095,4]
[365228017,1749552633265,-460.0,0.00021095,4]
[365228018,1749552633275,-460.0,0.00021095,4]
[365228019,1749552633284,-420.0,0.00021095,4]
[365228020,1749552633294,-390.0,0.00021095,4]
[365228021,1749552633303,-460.0,0.00021095,4]
[365228022,1749552633312,-400.0,0.00021095,4]
[365228023,1749552633322,-460.0,0.00021095,4]
[365228024,1749552633331,-460.0,0.00021095,4]
[365228025,1749552633340,-460.0,0.00021095,4]
[365228026,1749552633352,-400.0,0.00021095,4]
[365228027,1749552633362,-460.0,0.00021095,4]
[365228028,1749552633372,-460.0,0.00021095,4]
[365228029,1749552633381,-460.0,0.00021095,4]
[365228030,1749552633391,-460.0,0.00021095,4]
[365228031,1749552633400,-360.0,0.00021095,4]
[365228032,1749552633411,-440.0,0.00021095,4]
[365228033,1749552633420,-460.0,0.00021095,4]
[365228034,1749552633430,-320.0,0.00021095,4]
[365228035,1749552633440,-380.02280269,0.00021095,4]
[365228036,1749552633458,-420.0,0.00021095,4]
[365228037,1749552633471,-939.3,0.00021095,4]
[365228038,1749552633481,-460.0,0.00021095,4]
[365228039,1749552633491,-1398.04,0.00021095,4]
[365228040,1749552633501,-460.0,0.00021095,4]
[365228041,1749552633511,-460.0,0.00021095,4]
[365228042,1749552633520,-247.97760362,0.00021095,4]
[365228043,1749552633530,-349.69853494,0.00021095,4]
[365228044,1749552633540,-460.0,0.00021095,4]
[365228045,1749552633549,-195.66,0.00021095,4]
[365228046,1749552633559,-460.0,0.00021095,4]
[365228047,1749552633569,-460.0,0.00021095,2]
[365228048,1749552633579,-460.0,0.00021095,4]
[365228049,1749552633588,-587.6,0.00021095,4]
[365228050,1749552633598,-460.0,0.00021095,4]
[365228051,1749552633609,-460.0,0.00021095,4]
[365228052,1749552633619,-460.0,0.00021095,4]
[365228053,1749552633629,-283.40367879,0.00021095,4]
[365228054,1749552633639,-380.0,0.00021095,4]
[365228055,1749552633649,-380.0,0.00021095,4]
[365228056,1749552633659,-460.0,0.00021095,4]
[365228057,1749552633668,-380.0,0.00021095,4]
[365228058,1749552633678,-460.0,0.00021095,4]
[365228059,1749552633688,-1162.78,0.00021095,4]
[365228060,1749552633698,-460.0,0.00021095,4]
[365228061,1749552633708,-380.0,0.00021095,4]
[365228062,1749552633717,-460.0,0.00021095,4]
[365228063,1749552633728,-460.0,0.00021095,4]
[365228064,1749552633740,-460.0,0.00021095,4]
[365228065,1749552633750,-460.0,0.00021095,4]
[365228066,1749552633761,-460.0,0.00021095,4]
[365228067,1749552633770,-460.0,0.00021095,4]
[365228068,1749552633780,-460.0,0.00021095,4]
[365228069,1749552633790,-380.0,0.00021095,4]
[365228070,1749552633800,-460.0,0.00021095,4]
[365228071,1749552633810,-460.0,0.00021095,4]
[365228072,1749552633819,-390.89750212,0.00021095,4]
[365228073,1749552633830,-460.0,0.00021095,4]
[365228074,1749552633840,-460.0,0.00021095,4]
[365228075,1749552633850,-267.75104844,0.00021095,4]
[365228076,1749552633860,-460.0,0.00021095,4]
[365228077,1749552633870,-337.85283087,0.00021095,4]
[365228078,1749552633880,-460.0,0.00021095,4]
[365228079,1749552633890,-460.0,0.00021095,4]
[365228080,1749552633899,-460.0,0.00021095,4]
[365228081,1749552633909,-201.08793765,0.00021095,4]
[365228082,1749552633919,-460.0,0.00021095,4]
[365228083,1749552633929,-460.0,0.00021095,4]
[365228084,1749552633939,-460.0,0.00021095,4]
[365228085,1749552633949,-460.0,0.00021095,4]
[365228086,1749552633958,-390.0,0.00021095,4]
[365228087,1749552633968,-460.0,0.00021095,4]
[365228088,1749552633978,-460.0,0.00021095,4]
[365228089,1749552633988,-1424.64,0.00021095,4]
[365228090,1749552633998,-460.0,0.00021095,4]
[365228091,1749552634008,-460.0,0.00021095,4]
[365228092,1749552634018,-460.0,0.00021095,4]
[365228093,1749552634028,-376.24098942,0.00021095,4]
[365228094,1749552634038,-360.0,0.00021095,4]
[365228095,1749552634048,-460.0,0.00021095,4]
[365228096,1749552634058,-460.0,0.00021095,4]
[365228097,1749552634067,-460.0,0.00021095,4]
[365228098,1749552634080,-460.0,0.00021095,4]
[365228099,1749552634090,-410.0,0.00021095,4]
[365228100,1749552634100,-1190.27,0.00021095,4]
[365228101,1749552634111,-400.0,0.00021095,4]
[365228102,1749552634121,-460.0,0.00021095,4]
[365228103,1749552634130,-460.0,0.00021095,4]
[365228104,1749552634140,-460.0,0.00021095,4]
[365228105,1749552634151,-714.53,0.00021095,4]
[365228106,1749552634160,-2506.66,0.00021095,4]
[365228107,1749552634170,-460.0,0.00021095,4]
[365228108,1749552634180,-201.27473128,0.00021095,4]
[365228109,1749552634190,-460.0,0.00021095,4]
[365228110,1749552634200,-460.0,0.00021095,4]
[365228111,1749552634210,-400.0,0.00021095,4]
[365228112,1749552634220,-250.0,0.00021095,4]
[365228113,1749552634230,-410.0,0.00021095,4]
[365228114,1749552634240,-400.0,0.00021095,4]
[365228115,1749552634250,-460.0,0.00021095,4]
[365228116,1749552634260,-400.0,0.00021095,4]
[365228117,1749552634270,-1351.11,0.00021095,4]
[365228118,1749552634279,-460.0,0.00021095,4]
[365228119,1749552634289,-1521.42,0.00021095,4]
[365228120,1749552634299,-420.0,0.00021095,4]
[365228121,1749552634308,-390.0,0.00021095,4]
[365228122,1749552634318,-460.0,0.00021095,4]
[365228123,1749552634327,-460.0,0.00021095,4]
[365228124,1749552634337,-460.0,0.00021095,4]
[365228125,1749552634348,-350.0,0.00021095,2]
[365228126,1749552634362,-440.0,0.00021095,4]
[365228127,1749552634371,-621.1,0.00021095,4]
[365228128,1749552634380,-460.0,0.00021095,4]
[365228129,1749552634391,-160.0,0.00021172,2]
[365228130,1749552634402,-229.6792923,0.00021172,2]
[365228131,1749552634412,-834.9046531,0.00021172,2]
[365228132,1749552634423,-842.5625,0.00021172,2]
[365228133,1749552634436,-213.1263252,0.00021172,2]
[365228134,1749552634446,-424.12530924,0.00021172,2]
[365228135,1749552634457,-460.0,0.00021369,4]
[365228136,1749552634467,-600.0,0.00021369,4]
[365228137,1749552634477,-460.0,0.00021369,4]
[365228138,1749552634486,-460.0,0.00021369,4]
[365228139,1749552634497,-440.0,0.00021369,4]
[365228140,1749552634507,-460.0,0.00021369,4]
[365228141,1749552634517,-460.0,0.00021369,4]
[365228142,1749552634527,-460.0,0.00021369,4]
[365228143,1749552634540,-592.52,0.00021369,4]
[365228144,1749552634550,-410.0,0.00021369,4]
[365228145,1749552634559,-460.0,0.00021369,4]
[365228146,1749552634569,-460.0,0.00021369,4]
[365228147,1749552634578,-460.0,0.00021369,4]
[365228148,1749552634587,-460.0,0.00021369,4]
[365228149,1749552634597,-330.0,0.00021369,4]
[365228150,1749552634607,-460.0,0.00021369,4]
[365228151,1749552634616,-460.0,0.00021369,4]
[365228152,1749552634626,-290.0,0.00021369,4]
[365228153,1749552634635,-460.0,0.00021369,4]
[365228154,1749552634645,-939.3,0.00021369,4]
[365228155,1749552634655,-360.0,0.00021369,4]
[365228156,1749552634664,-1398.04,0.00021369,4]
[365228157,1749552634676,-460.0,0.00021369,4]
[365228158,1749552634686,-460.0,0.00021369,4]
[365228159,1749552634695,-460.0,0.00021369,4]
[365228160,1749552634705,-460.0,0.00021369,2]
[365228161,1749552634715,-460.0,0.00021369,4]
[365228162,1749552634725,-587.6,0.00021369,4]
[365228163,1749552634734,-460.0,0.00021369,4]
[365228164,1749552634744,-460.0,0.00021369,4]
[365228165,1749552634754,-460.0,0.00021369,4]
[365228166,1749552634764,-379.90100698,0.00021369,4]
[365228167,1749552634774,-1162.78,0.00021369,4]
[365228168,1749552634783,-460.0,0.00021369,4]
[365228169,1749552634793,-460.0,0.00021369,4]
[365228170,1749552634802,-460.0,0.00021369,4]
[365228171,1749552634812,-460.0,0.00021369,4]
[365228172,1749552634821,-460.0,0.00021369,4]
[365228173,1749552634831,-379.53405183,0.00021369,4]
[365228174,1749552634840,-460.0,0.00021369,4]
[365228175,1749552634850,-180.0,0.00021369,4]
[365228176,1749552634859,-460.0,0.00021369,4]
[365228177,1749552634868,-549.94,0.00021369,4]
[365228178,1749552634878,-390.0,0.00021369,4]
[365228179,1749552634887,-460.0,0.00021369,4]
[365228180,1749552634896,-460.0,0.00021369,4]
[365228181,1749552634905,-460.0,0.00021369,4]
[365228182,1749552634915,-1424.64,0.00021369,4]
[365228183,1749552634924,-460.0,0.00021369,4]
[365228184,1749552634933,-460.0,0.00021369,4]
[365228185,1749552634943,-460.0,0.00021369,4]
[365228186,1749552634953,-460.0,0.00021369,4]
[365228187,1749552634962,-460.0,0.00021369,4]
[365228188,1749552634972,-460.0,0.00021369,4]
[365228189,1749552634981,-1190.27,0.00021369,4]
[365228190,1749552634990,-328.04103966,0.00021369,4]
[365228191,1749552634999,-460.0,0.00021369,4]
[365228192,1749552635009,-714.53,0.00021369,4]
[365228193,1749552635018,-2506.66,0.00021369,4]
[365228194,1749552635028,-460.0,0.00021369,4]
[365228195,1749552635168,-460.0,0.00021369,4]
[365228196,1749552635177,-319.97143855,0.00021369,4]
[365228197,1749552635187,-460.0,0.00021369,4]
[365228198,1749552635196,-1351.11,0.00021369,4]
[365228199,1749552635206,-1521.42,0.00021369,4]
[365228200,1749552635215,-350.0,0.00021369,4]
[365228201,1749552635225,-460.0,0.00021369,4]
[365228202,1749552635234,-621.1,0.00021369,4]
[365228203,1749552635245,-460.0,0.00021369,4]
[365228204,1749552635254,-500.0,0.0002146,2]
[365228205,1749552635263,-207.4,0.00021503,2]
[365228206,1749552635272,-395.43,0.00021633,3]
[365228207,1749552635282,-197.72,0.00021633,3]
[365228208,1749552635291,-593.18,0.00021633,3]
[365228209,1749552635300,-460.0,0.00021643,4]
[365228210,1749552635310,-385.81083318,0.00021643,4]
[365228211,1749552635319,-534.84988418,0.00021643,4]
[365228212,1749552635328,-460.0,0.00021643,4]
[365228213,1749552635337,-380.0,0.00021643,4]
[365228214,1749552635347,-460.0,0.00021643,4]
[365228215,1749552635361,-460.0,0.00021643,4]
[365228216,1749552635370,-460.0,0.00021643,4]
[365228217,1749552635379,-460.0,0.00021643,4]
[365228218,1749552635388,-460.0,0.00021643,4]
[365228219,1749552635399,-460.0,0.00021643,4]
[365228220,1749552635415,-295.21,0.00021643,4]
[365228221,1749552635428,-939.3,0.00021643,4]
[365228222,1749552635439,-1398.04,0.00021643,4]
[365228223,1749552635449,-460.0,0.00021643,4]
[365228224,1749552635460,-460.0,0.00021643,4]
[365228225,1749552635470,-460.0,0.00021643,4]
[365228226,1749552635479,-460.0,0.00021643,2]
[365228227,1749552635490,-460.0,0.00021643,4]
[365228228,1749552635499,-587.6,0.00021643,4]
[365228229,1749552635511,-460.0,0.00021643,4]
[365228230,1749552635521,-460.0,0.00021643,4]
[365228231,1749552635533,-1162.78,0.00021643,4]
[365228232,1749552635544,-460.0,0.00021643,4]
[365228233,1749552635557,-460.0,0.00021643,4]
[365228234,1749552635568,-460.0,0.00021643,4]
[365228235,1749552635578,-460.0,0.00021643,4]
[365228236,1749552635588,-460.0,0.00021643,4]
[365228237,1749552635598,-387.50381283,0.00021643,4]
[365228238,1749552635607,-460.0,0.00021643,4]
[365228239,1749552635617,-291.92651472,0.00021643,4]
[365228240,1749552635627,-460.0,0.00021643,4]
[365228241,1749552635636,-460.0,0.00021643,4]
[365228242,1749552635646,-1424.64,0.00021643,4]
[365228243,1749552635656,-460.0,0.00021643,4]
[365228244,1749552635666,-460.0,0.00021643,4]
[365228245,1749552635676,-564.67572038,0.00021643,4]
[365228246,1749552635686,-460.0,0.00021643,4]
[365228247,1749552635696,-460.0,0.00021643,4]
[365228248,1749552635706,-460.0,0.00021643,4]
[365228249,1749552635715,-1190.27,0.00021643,4]
[365228250,1749552635725,-460.0,0.00021643,4]
[365228251,1749552635735,-714.53,0.00021643,4]
[365228252,1749552635744,-2506.66,0.00021643,4]
[365228253,1749552635754,-460.0,0.00021643,4]
[365228254,1749552635764,-460.0,0.00021643,4]
[365228255,1749552635773,-246.95026278,0.00021643,4]
[365228263,1749552638516,-1104.15973722,0.00021643,4]
[365228264,1749552638528,-1521.42,0.00021643,4]
[365228265,1749552638539,-460.0,0.00021643,4]
[365228266,1749552638550,-621.1,0.00021643,4]
[365228267,1749552638560,-460.0,0.00021643,4]
[365228268,1749552638571,-2366.03,0.00021813,2]
[365228269,1749552638581,-265.76172648,0.000219,6]
[365228270,1749552638591,-460.0,0.00021917,4]
[365228271,1749552638601,-460.0,0.00021917,4]
[365228272,1749552638610,-430.0,0.00021917,4]
[365228273,1749552638620,-460.0,0.00021917,4]
[365228274,1749552638630,-398.14596748,0.00021917,4]
[365228275,1749552638640,-460.0,0.00021917,4]
[365228276,1749552638650,-460.0,0.00021917,4]
[365228277,1749552638659,-460.0,0.00021917,4]
[365228278,1749552638670,-939.3,0.00021917,4]
[365228279,1749552638681,-460.0,0.00021917,4]
[365228280,1749552638690,-1398.04,0.00021917,4]
[365228281,1749552638700,-460.0,0.00021917,4]
[365228282,1749552638711,-460.0,0.00021917,4]
[365228283,1749552638722,-460.0,0.00021917,2]
[365228284,1749552638731,-460.0,0.00021917,4]
[365228285,1749552638741,-587.6,0.00021917,4]
[365228286,1749552638750,-270.01,0.00021917,4]
[365228287,1749552638760,-460.0,0.00021917,4]
[365228288,1749552638770,-1162.78,0.00021917,4]
[365228289,1749552638780,-445.85,0.00021917,4]
[365228290,1749552638789,-460.0,0.00021917,4]
[365228291,1749552638800,-460.0,0.00021917,4]
[365228292,1749552638812,-460.0,0.00021917,4]
[365228293,1749552638821,-460.0,0.00021917,4]
[365228294,1749552638831,-460.0,0.00021917,4]
[365228295,1749552638840,-460.0,0.00021917,4]
[365228296,1749552638849,-600.86038447,0.00021917,4]
[365228297,1749552638859,-1424.64,0.00021917,4]
[365228298,1749552638869,-460.0,0.00021917,4]
[365228299,1749552638879,-460.0,0.00021917,4]
[365228300,1749552638888,-380.0,0.00021917,4]
[365228301,1749552638898,-460.0,0.00021917,4]
[365228302,1749552638907,-460.0,0.00021917,4]
[365228303,1749552638917,-1190.27,0.00021917,4]
[365228304,1749552638926,-460.0,0.00021917,4]
[365228305,1749552638935,-714.53,0.00021917,4]
[365228306,1749552638945,-2506.66,0.00021917,4]
[365228307,1749552638954,-460.0,0.00021917,4]
[365228308,1749552638963,-460.0,0.00021917,4]
[365228309,1749552638972,-1351.11,0.00021917,4]
[365228310,1749552638981,-1521.42,0.00021917,4]
[365228311,1749552638991,-460.0,0.00021917,4]
[365228312,1749552639000,-621.1,0.00021917,4]
[365228313,1749552639010,-460.0,0.00021917,4]
[365228314,1749552639019,-151.0,0.00022,7]
[365228315,1749552639033,-151.0,0.00022,7]
[365228316,1749552639042,-151.0,0.00022,7]
[365228317,1749552639052,-36025.94320734,0.00022,2]
[365228318,1749552639062,-44284.09362124,0.00022,2]
[365228319,1749552639071,-4254.02721369,0.00022,7]
[365228320,1749552639080,-160.86915986,0.00022,2]
[365228321,1749552639090,-265.76172619,0.00022003,6]
[365228322,1749552639099,-500.0,0.00022008,2]
[365228323,1749552639109,-3000.0,0.000221,2]
[365228324,1749552639118,-3000.0,0.000221,2]
[365228325,1749552639127,-265.76172619,0.00022107,6]
[365228326,1749552639137,-3000.0,0.0002211,2]
[365228327,1749552639146,-3000.0,0.0002211,2]
[365228328,1749552639155,-500.0,0.00022117,2]
[365228329,1749552639165,-500.0,0.00022117,2]
[365228330,1749552639174,-500.0,0.00022117,2]
[365228331,1749552639183,-500.0,0.00022117,2]
[365228332,1749552639193,-5000.0,0.00022117,2]
[365228333,1749552639202,-500.0,0.00022117,2]
[365228334,1749552639211,-500.0,0.00022117,2]
[365228335,1749552639221,-500.0,0.00022117,2]
[365228336,1749552639231,-500.0,0.00022117,2]
[365228337,1749552639240,-500.0,0.00022117,2]
[365228338,1749552639249,-500.0,0.00022117,2]
[365228339,1749552639258,-500.0,0.00022117,2]
[365228340,1749552639266,-500.0,0.00022117,2]
[365228341,1749552639274,-500.0,0.00022117,2]
[365228342,1749552639284,-500.0,0.00022117,2]
[365228343,1749552639293,-500.0,0.00022117,2]
[365228344,1749552639300,-500.0,0.00022117,2]
[365228345,1749552639309,-500.0,0.00022117,2]
[365228346,1749552639317,-500.0,0.00022117,2]
[365228347,1749552639325,-500.0,0.00022117,2]